bitfinex-derivatives/quotes_ETHF0:USTF0_20220103
["timestamp","ask_amount","ask_price","bid_price","bid_amount"]
[1641231281129,3.39587227,3771.5,3770.8,2.00479]
[1641231281331,3.39587227,3771.5,3771.3,1.46019325]
[1641231282330,3.39587227,3771.5,3771.2,2.1903865]
[1641231282731,3.39587227,3771.5,3771.3,0.229991]
[1641231283531,3.39587227,3771.5,3771.3,2.277991]
[1641231283732,0.18689909,3772.0,3771.3,2.277991]
[1641231283733,0.18689909,3772.0,3771.4,12.89019325]
[1641231284033,3.27388281,3772.1,3771.4,1.46019325]
[1641231284933,1.6190831,3771.4,3771.2,0.73019325]
[1641231285139,1.6190831,3771.4,3771.3,2.234781]
[1641231285333,3.69451983,3772.0,3771.3,2.00479]
[1641231287035,3.69451983,3772.0,3771.9,0.87611399]
[1641231287234,3.69451983,3772.0,3771.3,2.00479]
[1641231288336,3.69451983,3772.0,3771.4,1.16989078]
[1641231289137,2.00479,3771.5,3771.4,1.16989078]
[1641231290445,0.21063573,3771.5,3771.4,1.39988178]
[1641231290845,0.21063573,3771.5,3771.4,1.16989078]
[1641231291246,0.21063573,3771.5,3771.4,1.39988178]
[1641231291444,0.21063573,3771.5,3771.4,1.16989078]
[1641231292244,0.21063573,3771.5,3771.4,1.39988178]
[1641231293147,0.21063573,3771.5,3771.4,1.16989078]
[1641231294749,0.21063573,3771.5,3771.4,1.39988178]
[1641231295149,0.21063573,3771.5,3771.4,1.16989078]
[1641231296149,0.21063573,3771.5,3771.4,1.39988178]
[1641231296349,0.21063573,3771.5,3771.4,1.16989078]
[1641231298350,4.45303573,3771.5,3771.4,1.16989078]
[1641231298752,4.45303573,3771.5,3771.4,0.37437809]
[1641231299154,4.45303573,3771.5,3771.4,0.60436909]
[1641231299354,0.21063573,3771.5,3771.4,0.60436909]
[1641231300655,0.21063573,3771.5,3771.4,0.37437809]
[1641231301355,0.21063573,3771.5,3771.4,1.81897268]
[1641231302056,0.21063573,3771.5,3771.4,0.37437809]
[1641231302457,0.21063573,3771.5,3771.4,0.60436909]
[1641231302657,0.21063573,3771.5,3771.4,2.04896368]
[1641231302858,2.00479,3772.1,3771.4,14.97896368]
[1641231303059,2.00479,3772.1,3771.4,2.04896368]
[1641231303257,2.00479,3772.1,3771.5,2.00479]
[1641231303457,2.00479,3772.1,3771.5,13.43479]
[1641231304357,2.00479,3772.1,3771.5,2.00479]
[1641231305358,2.00479,3772.1,3771.9,1.46071112]
[1641231305563,2.00479,3772.1,3772.0,1.21540127]
[1641231306359,2.80010448,3772.1,3772.0,1.21540127]
[1641231307160,2.00479,3772.1,3771.2,0.74756414]
[1641231307362,3.52657868,3772.1,3771.2,0.74756414]
[1641231307561,3.52657868,3772.1,3771.2,1.8115152]
[1641231307761,3.52657868,3772.1,3771.2,1.06395106]
[1641231308562,3.0,3771.8,3771.2,1.06395106]
[1641231308762,1.5,3771.6,3771.0,0.74756414]
[1641231308963,0.95454265,3771.5,3770.8,4.90936692]
[1641231309162,2.00479,3771.1,3770.8,2.90457692]
[1641231309362,2.75549,3771.1,3770.9,0.74756262]
[1641231309565,1.5,3771.0,3770.5,2.90457692]
[1641231309763,2.75549,3771.1,3770.5,2.90457692]
[1641231310367,4.25549,3771.1,3770.5,2.90457692]
[1641231310566,2.75549,3771.1,3770.6,0.91116699]
[1641231311967,2.75549,3771.1,3769.9,2.99083845]
[1641231312669,0.79568983,3770.4,3770.0,1.07937469]
[1641231313271,2.80047983,3770.4,3770.0,1.07937469]
[1641231315274,0.79574581,3770.1,3770.0,1.07937469]
[1641231315873,0.79574581,3770.1,3770.0,1.30936569]
[1641231316371,2.00479,3770.4,3770.0,1.30936569]
[1641231317571,2.00479,3770.4,3770.0,1.07937469]
[1641231318872,0.79573088,3770.2,3770.0,1.07937469]
[1641231319273,0.79573438,3770.2,3770.0,1.07937469]
[1641231319475,0.79573438,3770.2,3770.1,0.229991]
[1641231319674,0.79573438,3770.2,3770.0,1.07937469]
[1641231320376,0.79573438,3770.2,3770.1,0.229991]
[1641231320576,0.79573438,3770.2,3770.0,1.07937469]
[1641231321177,0.79573438,3770.2,3770.1,0.229991]
[1641231321379,0.79573438,3770.2,3770.0,1.07937469]
[1641231324079,1.60993438,3770.2,3770.0,1.07937469]
[1641231324882,1.60993438,3770.2,3770.0,1.95973886]
[1641231325281,1.60993438,3770.2,3770.0,1.16391474]
[1641231325282,0.8142,3770.2,3770.0,1.16391474]
[1641231325482,0.8142,3770.2,3769.8,2.00479]
[1641231326585,0.8142,3770.2,3769.9,1.23386446]
[1641231328289,0.95485383,3770.3,3769.9,1.23386446]
[1641231330894,1.21047743,3770.2,3769.9,1.23386446]
[1641231331296,1.21047743,3770.2,3770.0,0.229991]
[1641231331496,1.21047743,3770.2,3770.1,1.5]
[1641231331701,1.21047743,3770.2,3770.0,0.229991]
[1641231331702,1.21047743,3770.2,3770.0,11.659991]
[1641231332303,1.21047743,3770.2,3770.0,13.159991]
[1641231332703,1.21047743,3770.2,3770.0,0.229991]
[1641231333303,1.53821505,3770.8,3770.0,0.229991]
[1641231334604,1.53821505,3770.8,3770.0,11.659991]
[1641231335204,1.53821505,3770.8,3770.0,0.229991]
[1641231336708,1.53821505,3770.8,3770.0,11.659991]
[1641231337308,1.53821505,3770.8,3770.0,0.229991]
[1641231338109,0.83834725,3770.2,3770.0,0.229991]
[1641231339608,0.79570714,3770.3,3769.9,1.23386446]
[1641231339809,1.49370714,3770.3,3769.9,1.23386446]
[1641231344515,0.79570714,3770.3,3769.9,1.23386446]
[1641231345117,0.79570714,3770.3,3770.0,0.128157]
[1641231346119,0.79570714,3770.3,3770.1,0.88487911]
[1641231346718,0.95467967,3770.9,3770.1,0.08906432]
[1641231347420,2.00479,3770.3,3770.1,0.08906432]
[1641231349221,2.00479,3770.3,3769.9,1.23386446]
[1641231350225,2.76799,3770.3,3769.9,1.23386446]
[1641231350425,4.26799,3770.3,3769.9,1e-08]
[1641231350626,1.5,3770.1,3769.3,0.74784145]
[1641231350824,0.95488175,3770.2,3769.3,0.74784145]
[1641231351224,2.45488175,3770.2,3769.3,0.74784145]
[1641231351426,1.5,3770.0,3769.3,0.74784145]
[1641231351627,3.0,3770.1,3769.3,0.74784145]
[1641231351826,3.0,3770.1,3769.4,0.71388606]
[1641231352028,1.5,3770.0,3769.3,0.74784145]
[1641231352227,1.5,3769.7,3769.1,2.00479]
[1641231352526,2.82624588,3769.9,3769.1,2.00479]
[1641231352726,3.0,3770.1,3769.1,1.20779]
[1641231353129,0.95488175,3770.2,3769.1,1.20779]
[1641231353429,2.00479,3769.5,3768.7,2.00479]
[1641231353627,2.67999,3769.5,3768.8,0.128157]
[1641231357032,2.00479,3769.5,3768.8,0.128157]
[1641231360438,2.00479,3769.5,3769.1,1.47799963]
[1641231362244,2.00479,3769.5,3768.8,0.128157]
[1641231365345,34.72859,3770.3,3768.9,11.43]
[1641231365644,34.72859,3770.3,3769.3,2.00479]
[1641231365846,2.00479,3770.3,3769.3,13.43479]
[1641231366046,4.244256,3770.2,3769.3,13.43479]
[1641231366247,4.244256,3770.2,3769.4,1.32416247]
[1641231367748,4.244256,3770.2,3769.5,0.88409874]
[1641231368247,2.00479,3770.3,3769.6,0.128157]
[1641231368947,4.244088,3770.2,3769.6,0.128157]
[1641231369348,4.244088,3770.2,3769.5,0.88409874]
[1641231370448,4.244088,3770.2,3769.6,0.128157]
[1641231370748,2.00479,3770.3,3769.4,2.20826121]
[1641231372651,2.55526628,3770.0,3769.4,2.20826121]
[1641231374856,2.55552123,3769.6,3769.4,2.20826121]
[1641231375958,2.55552123,3769.6,3769.4,1.32416247]
[1641231377260,2.00479,3769.7,3769.3,0.14313441]
[1641231378061,2.00479,3769.7,3769.0,0.14313441]
[1641231378858,2.00479,3769.7,3768.7,2.70122249]
[1641231381163,3.50479,3769.7,3768.7,2.70122249]
[1641231381366,2.00479,3769.7,3768.7,2.70122249]
[1641231382462,3.50479,3769.7,3768.7,2.70122249]
[1641231382864,2.5654703,3769.1,3768.7,2.70122249]
[1641231383064,3.0984703,3769.1,3768.7,2.70122249]
[1641231384867,2.5654703,3769.1,3768.7,2.70122249]
[1641231385467,2.00479,3769.7,3768.2,11.43]
[1641231385468,1.00297018,3768.7,3768.2,11.43]
[1641231385670,1.00297018,3768.7,3768.3,2.00479]
[1641231385868,2.00479,3769.2,3768.3,2.00479]
[1641231386469,2.00479,3769.2,3768.4,1.16325957]
[1641231388470,2.00479,3769.2,3768.5,0.128157]
[1641231390773,2.00479,3769.2,3768.4,12.59325957]
[1641231390974,2.00479,3769.2,3768.4,1.16325957]
[1641231391174,2.69834157,3769.0,3768.4,1.29141657]
[1641231391772,2.69834157,3769.0,3768.4,12.72141657]
[1641231392073,2.69834157,3769.0,3768.4,1.29141657]
[1641231393275,2.69834157,3769.0,3768.4,1.16325957]
[1641231393674,1.44524511,3768.4,3768.0,1.47799963]
[1641231393875,0.7295,3768.4,3768.0,1.47799963]
[1641231394076,0.7295,3768.4,3767.6,33.04099963]
[1641231394274,0.7295,3768.4,3767.6,1.47799963]
[1641231394475,0.7295,3768.4,3767.7,0.128157]
[1641231394875,0.7295,3768.4,3767.6,1.47799963]
[1641231395275,0.7295,3768.4,3767.7,0.96879004]
[1641231395675,2.00479,3767.9,3767.7,0.96879004]
[1641231396475,2.00479,3767.9,3767.7,1.32693804]
[1641231397277,2.00479,3768.5,3767.8,11.43]
[1641231397480,30.7211,3769.3,3767.8,14.25622125]
[1641231397678,2.00479,3769.1,3768.2,2.00479]
[1641231397879,2.00479,3769.1,3768.3,11.43]
[1641231398777,2.00479,3769.1,3768.2,2.74170887]
[1641231399279,3.50705748,3768.6,3768.3,1.47537942]
[1641231399478,3.50705748,3768.6,3768.4,0.229991]
[1641231399678,3.50705748,3768.6,3768.3,2.2235146]
[1641231400380,3.50705748,3768.6,3768.4,0.229991]
[1641231401181,3.50705748,3768.6,3768.2,4.21708829]
[1641231401380,4.15545748,3768.6,3768.2,4.21708829]
[1641231403186,4.15545748,3768.6,3768.2,2.74170887]
[1641231404488,2.00479,3769.5,3768.5,11.43]
[1641231404687,2.00479,3769.5,3768.9,11.43]
[1641231404986,2.00479,3769.5,3769.0,0.128157]
[1641231405387,2.00479,3769.5,3768.9,11.43]
[1641231405790,2.00479,3769.5,3769.0,0.90744451]
[1641231406794,0.95851076,3769.3,3769.0,0.90744451]
[1641231407793,3.08358804,3769.5,3769.0,0.00827518]
[1641231409698,2.00479,3769.1,3769.0,0.00827518]
[1641231411999,2.64229,3769.1,3769.0,0.00827518]
[1641231412800,2.64229,3769.1,3769.0,0.23826618]
[1641231413001,2.00479,3769.1,3769.0,0.23826618]
[1641231413403,2.81840854,3769.1,3769.0,0.23826618]
[1641231414811,2.81840854,3769.1,3769.0,1.12163877]
[1641231415011,0.81361854,3769.1,3769.0,1.12163877]
[1641231415811,0.81361854,3769.1,3769.0,0.23826618]
[1641231416909,0.81361854,3769.1,3769.0,0.00827518]
[1641231417710,0.81361854,3769.1,3769.0,0.23826618]
[1641231418112,0.81361854,3769.1,3769.0,0.00827518]
[1641231418514,0.81361854,3769.1,3769.0,0.89363193]
[1641231418713,0.81361854,3769.1,3769.0,1.12362293]
[1641231419311,0.81361854,3769.1,3769.0,0.23826618]
[1641231419512,0.81361854,3769.1,3769.0,0.00827518]
[1641231420512,0.81361854,3769.1,3769.0,0.89391741]
[1641231420913,0.81361854,3769.1,3768.9,0.84725533]
[1641231422214,0.81361854,3769.1,3769.0,1.31313269]
[1641231423417,1.22421709,3769.0,3768.5,1.47537942]
[1641231423619,0.543,3769.0,3768.5,1.47537942]
[1641231424116,2.00479,3768.9,3768.5,1.47537942]
[1641231424317,2.00479,3768.9,3768.6,1.22781192]
[1641231428719,2.00479,3768.9,3768.7,0.229991]
[1641231428920,7.64795607,3768.9,3768.7,0.229991]
[1641231429118,7.64795607,3768.9,3768.6,1.22781192]
[1641231429618,8.44655607,3768.9,3768.6,1.22781192]
[1641231431624,6.36836811,3768.7,3768.6,0.43081192]
[1641231432024,8.37315811,3768.7,3768.6,0.40341192]
[1641231433122,9.87315811,3768.7,3768.6,0.40341192]
[1641231433421,9.87315811,3768.7,3767.5,2.2235146]
[1641231433624,9.87315811,3768.7,3767.7,0.67528168]
[1641231434522,8.37315811,3768.7,3767.7,0.67528168]
[1641231436323,1.5,3768.6,3767.7,0.67528168]
[1641231436624,8.37315811,3768.7,3767.7,0.67528168]
[1641231436826,1.5,3768.6,3767.7,0.67528168]
[1641231438223,1.5,3768.6,3767.7,0.64748168]
[1641231440925,31.61378894,3767.8,3767.7,0.64748168]
[1641231441127,32.42088894,3767.8,3767.7,0.64748168]
[1641231441328,32.42088894,3767.8,3767.5,0.88451825]
[1641231441727,1.5,3767.7,3767.5,0.88451825]
[1641231442628,32.42088894,3767.8,3767.5,0.88451825]
[1641231442927,1.5,3767.7,3767.5,0.88451825]
[1641231443129,1.5,3767.7,3767.0,0.8175722]
[1641231443328,2.82720871,3767.1,3765.5,31.1801]
[1641231443529,1.5,3767.1,3766.0,2.13679271]
[1641231443928,1.5,3767.1,3765.6,2.13679271]
[1641231444129,2.00479,3767.0,3766.1,2.00479]
[1641231444531,1.5,3766.7,3766.1,2.00479]
[1641231444731,1.5,3766.7,3765.9,0.72215668]
[1641231445328,1.5,3766.4,3765.9,0.72215668]
[1641231445530,1.5,3766.8,3765.9,0.72215668]
[1641231446131,2.59949,3767.0,3765.9,0.72215668]
[1641231446332,2.00479,3766.1,3765.9,0.72215668]
[1641231449332,2.72099,3766.1,3765.9,0.72215668]
[1641231450332,2.72099,3766.1,3766.0,0.229991]
[1641231450532,2.00479,3766.1,3766.0,0.229991]
[1641231451332,2.00479,3766.1,3765.9,0.72215668]
[1641231451734,2.00479,3766.1,3765.9,0.95214768]
[1641231451931,2.00479,3766.1,3765.9,0.72215668]
[1641231452935,0.6535,3766.1,3765.9,0.72215668]
[1641231453435,5.96416435,3766.1,3765.9,0.72215668]
[1641231453837,4.58905571,3765.7,3765.3,1.4758669]
[1641231454238,4.00958,3765.4,3765.2,1.4758669]
[1641231454939,4.00958,3765.4,3765.2,2.74385759]
[1641231456141,1.5,3765.3,3765.2,2.74385759]
[1641231456441,0.6672,3765.3,3765.2,1.26799069]
[1641231457546,0.6672,3765.3,3765.2,1.16269069]
[1641231458545,0.6672,3765.3,3765.2,0.75769069]
[1641231458748,0.76082367,3765.3,3765.2,0.75769069]
[1641231459848,0.09362367,3765.3,3765.2,0.75769069]
[1641231461352,5.50958,3765.4,3764.7,1.28320676]
[1641231461551,0.6108,3765.3,3764.7,1.28320676]
[1641231462351,2.00479,3765.0,3764.7,1.28320676]
[1641231463051,2.00479,3765.0,3764.8,0.229991]
[1641231463751,2.00479,3765.0,3764.7,1.28320676]
[1641231464157,2.00479,3765.0,3764.8,11.659991]
[1641231464353,3.1980223,3765.4,3764.8,11.659991]
[1641231464553,2.00479,3765.4,3764.8,11.659991]
[1641231466155,2.00479,3765.4,3764.8,13.159991]
[1641231466354,2.00479,3765.4,3764.8,13.664781]
[1641231466755,2.00479,3765.4,3764.8,2.234781]
[1641231468256,2.15777908,3765.9,3764.8,2.234781]
[1641231468457,2.00479,3766.1,3764.9,11.43]
[1641231469258,0.14978978,3766.0,3764.9,11.43]
[1641231470263,0.14978978,3766.0,3765.4,2.00479]
[1641231470478,0.14978978,3766.0,3765.5,1.24713942]
[1641231474465,2.00479,3766.1,3765.5,1.24713942]
[1641231475269,0.9559401,3766.0,3765.5,1.24713942]
[1641231475666,2.00479,3766.1,3765.5,1.24713942]
[1641231476668,0.95573147,3766.8,3765.6,11.43]
[1641231476870,0.95573147,3766.8,3765.6,12.93]
[1641231477069,30.6849,3767.6,3765.6,12.93]
[1641231477370,30.6849,3767.6,3765.6,11.43]
[1641231477569,1.5,3767.4,3765.6,11.43]
[1641231478370,2.40909,3766.6,3765.8,2.00479]
[1641231478571,0.95568619,3767.0,3766.0,1.5]
[1641231478769,0.95568619,3767.0,3766.0,12.0682]
[1641231479070,0.95568619,3767.0,3766.0,0.6382]
[1641231479270,1.32709246,3767.5,3766.0,0.6382]
[1641231479470,1.71609246,3767.5,3766.0,0.6382]
[1641231479670,0.389,3767.5,3766.0,0.6382]
[1641231479871,0.79647634,3766.6,3766.1,0.89877602]
[1641231480071,0.79647634,3766.6,3766.2,0.128157]
[1641231480474,0.79647634,3766.6,3766.5,2.00479]
[1641231480773,0.79647634,3766.6,3766.5,2.234781]
[1641231482170,0.79647634,3766.6,3766.5,2.00479]
[1641231482372,0.79654963,3766.3,3766.1,0.89877602]
[1641231486481,0.79654963,3766.3,3766.2,0.229991]
[1641231486680,0.79654963,3766.3,3766.1,0.89877602]
[1641231487580,0.79654963,3766.3,3766.1,1.12876702]
[1641231487780,0.79654963,3766.3,3766.1,0.89877602]
[1641231488381,0.79654963,3766.3,3766.1,1.12876702]
[1641231488781,0.79654963,3766.3,3766.1,0.89877602]
[1641231488982,0.79654963,3766.3,3766.1,0.10217509]
[1641231489383,0.79654963,3766.3,3766.2,0.229991]
[1641231489584,0.79654963,3766.3,3766.1,0.10217509]
[1641231489784,1.5,3766.2,3766.1,0.10217509]
[1641231489983,1.5,3766.2,3762.1,0.7089]
[1641231489984,0.95602117,3765.7,3763.4,0.8870767]
[1641231490183,1.32786783,3765.3,3763.8,11.43]
[1641231490389,1.76542117,3765.7,3763.8,11.43]
[1641231490583,2.00479,3765.3,3764.4,2.00479]
[1641231490787,3.33265783,3765.3,3764.4,2.00479]
[1641231491687,4.83265783,3765.3,3764.4,2.00479]
[1641231492083,3.50479,3765.3,3764.4,2.00479]
[1641231493291,1.1932323,3764.8,3764.4,2.00479]
[1641231493487,1.9721323,3764.8,3764.4,2.00479]
[1641231493687,22.30222857,3764.6,3764.5,1.10733036]
[1641231494489,23.51955951,3764.6,3764.5,1.10733036]
[1641231495487,23.70495718,3764.6,3764.5,1.10733036]
[1641231495688,23.70495718,3764.6,3764.4,1.89469256]
[1641231496589,24.89818948,3764.6,3764.4,1.89469256]
[1641231497489,24.89818948,3764.6,3764.5,1.16499595]
[1641231498091,23.51955951,3764.6,3764.5,1.16499595]
[1641231499194,23.51955951,3764.6,3763.9,0.8870767]
[1641231499995,22.30222857,3764.6,3763.9,0.8870767]
[1641231500195,22.30222857,3764.6,3763.6,0.8870767]
[1641231500497,2.00479,3764.3,3763.6,0.8870767]
[1641231500898,2.00479,3764.3,3763.6,1.0152337]
[1641231501297,3.89634558,3764.2,3763.6,0.8870767]
[1641231501498,3.64706033,3763.7,3763.6,0.8870767]
[1641231502096,3.64706033,3763.7,3763.5,3.56220482]
[1641231502497,3.64706033,3763.7,3763.6,0.229991]
[1641231502696,3.64706033,3763.7,3763.5,3.56220482]
[1641231503501,5.14706033,3763.7,3763.5,0.8870767]
[1641231503700,5.14706033,3763.7,3762.5,33.0114]
[1641231503701,1.55119238,3763.4,3762.8,1.4758669]
[1641231503897,1.5,3763.5,3762.8,1.4758669]
[1641231504501,2.00479,3763.4,3762.8,1.4758669]
[1641231505503,2.00479,3763.4,3762.7,1.01259227]
[1641231505903,2.00479,3763.4,3762.7,1.14074927]
[1641231506104,2.00479,3763.4,3762.8,1.5]
[1641231506303,1.49474649,3763.6,3763.4,11.43]
[1641231506505,1.49474649,3763.6,3762.8,0.5066]
[1641231506506,1.79359083,3763.7,3763.5,13.43479]
[1641231506703,1.79359083,3763.7,3763.5,2.00479]
[1641231507505,1.79359083,3763.7,3763.6,0.73688036]
[1641231508105,4.20308083,3764.3,3763.6,0.73688036]
[1641231508907,4.40074032,3764.2,3763.6,0.73688036]
[1641231509307,2.15071118,3763.8,3763.6,0.73688036]
[1641231513418,1.40028686,3763.7,3763.6,0.73688036]
[1641231513616,1.40028686,3763.7,3763.6,0.96687136]
[1641231514418,1.40028686,3763.7,3763.6,0.73688036]
[1641231515519,1.40028686,3763.7,3763.6,0.96687136]
[1641231515720,0.20438994,3763.7,3763.6,0.73688036]
[1641231516923,0.20438994,3763.7,3763.5,2.00479]
[1641231516924,0.4427922,3763.6,3763.5,2.00479]
[1641231517122,0.4427922,3763.6,3763.5,2.234781]
[1641231517323,0.20438994,3763.7,3763.5,2.00479]
[1641231517521,0.20438994,3763.6,3763.5,2.00479]
[1641231517922,0.20438994,3763.6,3763.5,3.29563054]
[1641231518526,1.40028686,3763.7,3763.5,3.52562154]
[1641231518724,1.40028686,3763.7,3763.5,3.29563054]
[1641231519528,1.40028686,3763.7,3763.5,3.52562154]
[1641231520030,1.19589692,3763.8,3763.5,3.29563054]
[1641231520829,1.19589692,3763.7,3763.5,3.29563054]
[1641231521129,1.19589692,3763.7,3763.6,0.229991]
[1641231521330,1.19589692,3763.7,3763.5,14.72563054]
[1641231521529,1.19589692,3763.7,3763.5,3.29563054]
[1641231522730,1.19589692,3763.6,3763.5,14.72563054]
[1641231523430,1.19589692,3763.6,3763.5,14.95562154]
[1641231523929,1.79359083,3764.2,3763.5,16.45562154]
[1641231524129,2.87842155,3764.5,3763.9,11.43]
[1641231524331,2.87842155,3764.5,3764.0,0.128157]
[1641231524529,2.87842155,3764.5,3764.4,2.00479]
[1641231524730,2.87842155,3764.5,3764.4,2.991781]
[1641231524931,0.63610572,3764.5,3764.4,4.18201876]
[1641231525329,0.63610572,3764.5,3764.4,3.95202776]
[1641231525933,2.36609672,3764.5,3759.2,13.087]
[1641231526133,1.5,3764.4,3762.5,2.95414297]
[1641231526334,5.750514,3764.4,3762.5,2.95414297]
[1641231526533,2.00479,3763.7,3762.8,2.00479]
[1641231526734,2.73269,3763.7,3763.2,0.128157]
[1641231526936,2.73269,3763.7,3763.2,12.7696815]
[1641231527134,2.73269,3763.7,3763.2,1.3396815]
[1641231527935,2.73269,3763.7,3763.3,11.43]
[1641231531046,0.63610572,3764.6,3763.7,11.43]
[1641231531238,0.63610572,3764.6,3764.3,11.43]
[1641231531440,0.63610572,3764.6,3764.4,0.204766]
[1641231531638,0.229991,3764.5,3763.7,0.7885]
[1641231531841,0.63610572,3764.6,3763.7,0.7885]
[1641231532042,0.63610572,3764.6,3763.7,1.48621823]
[1641231532441,0.79685718,3764.8,3763.7,1.48621823]
[1641231532641,0.79685718,3764.8,3764.0,2.00479]
[1641231532842,0.79695159,3764.4,3764.0,2.00479]
[1641231533641,0.79702079,3764.1,3763.7,0.69771823]
[1641231534342,2.12528723,3764.1,3763.7,0.69771823]
[1641231534544,0.79702079,3764.1,3763.7,0.69771823]
[1641231534742,2.00479,3763.9,3763.7,0.69771823]
[1641231534941,1.02707604,3763.8,3763.7,0.69771823]
[1641231536144,3.20049563,3763.9,3763.7,12.20432723]
[1641231536348,1.19570563,3763.9,3763.7,12.20432723]
[1641231536746,1.19570563,3763.9,3763.7,2.77911723]
[1641231537347,0.79703185,3764.0,3763.7,2.77911723]
[1641231537546,0.229991,3763.9,3763.7,2.70250823]
[1641231537749,0.229991,3763.9,3763.7,0.69771823]
[1641231538646,2.234781,3763.9,3763.7,0.69771823]
[1641231539947,3.43048663,3763.9,3763.7,0.69771823]
[1641231540347,3.20049563,3763.9,3763.7,0.77432723]
[1641231540947,0.229991,3763.8,3763.7,0.69771823]
[1641231542351,2.00479,3763.9,3763.7,0.77432723]
[1641231542549,0.229991,3763.8,3763.7,0.69771823]
[1641231543250,2.00479,3763.9,3763.7,0.77432723]
[1641231543450,0.229991,3763.8,3763.7,0.69771823]
[1641231543650,2.00479,3763.9,3763.7,0.69771823]
[1641231544251,2.00479,3763.9,3763.7,0.77432723]
[1641231544552,2.234781,3763.9,3763.7,0.69771823]
[1641231545055,0.1546884,3763.8,3763.7,0.69771823]
[1641231545656,0.3846794,3763.8,3763.7,0.69771823]
[1641231546255,0.1546884,3763.8,3763.7,0.69771823]
[1641231546756,0.1546884,3763.8,3763.7,12.20432723]
[1641231548161,1.49441044,3764.3,3763.7,13.70432723]
[1641231548357,1.49441044,3764.3,3764.1,11.43]
[1641231548558,0.34911044,3764.3,3764.2,11.506609]
[1641231548762,0.34911044,3764.3,3764.2,11.43]
[1641231549159,1.044e-05,3764.3,3764.2,11.43]
[1641231549561,1.044e-05,3764.3,3764.2,11.506609]
[1641231549761,1.044e-05,3764.3,3764.2,0.076609]
[1641231550064,1.43298816,3764.7,3764.2,0.076609]
[1641231550262,0.79688244,3764.7,3764.2,0.076609]
[1641231550461,0.79688244,3764.7,3764.2,0.204766]
[1641231550659,0.79688244,3764.7,3764.2,11.634766]
[1641231551059,2.00479,3764.9,3764.2,12.342566]
[1641231551760,2.00479,3764.9,3764.2,0.912566]
[1641231552260,1.07205976,3764.7,3764.2,0.7078]
[1641231552460,1.86505976,3764.7,3764.0,0.8894281]
[1641231552663,1.86505976,3764.7,3763.9,2.8942181]
[1641231552860,1.86505976,3764.7,3764.0,0.128157]
[1641231553464,1.79329253,3764.3,3764.0,0.8894281]
[1641231553662,0.229991,3764.2,3764.0,0.8894281]
[1641231554162,0.229991,3764.2,3764.0,0.9660371]
[1641231554362,0.229991,3764.2,3764.0,0.8894281]
[1641231554961,3.79808253,3764.3,3763.9,0.8894281]
[1641231555264,1.79329253,3764.2,3763.9,12.3194281]
[1641231555962,3.79808253,3764.3,3763.9,11.43]
[1641231556361,3.79808253,3764.3,3764.2,11.43]
[1641231556563,3.79808253,3764.3,3764.2,11.506609]
[1641231557161,2.00479,3764.3,3764.2,11.506609]
[1641231559261,2.00479,3764.3,3764.2,12.60932435]
[1641231559461,2.00479,3764.3,3764.2,13.42214345]
[1641231560063,2.00479,3764.3,3764.2,13.49875245]
[1641231562169,2.00479,3764.3,3764.2,12.2984371]
[1641231562370,2.00479,3764.3,3764.2,11.409009]
[1641231563271,1.49765494,3764.4,3764.2,11.409009]
[1641231563772,2.00479,3764.3,3764.2,11.409009]
[1641231564673,2.234781,3764.3,3764.2,11.3324]
[1641231567780,4.02807353,3764.3,3763.9,11.3324]
[1641231569081,1.49776087,3764.0,3763.9,11.3324]
[1641231569281,1.72775187,3764.0,3763.9,11.409009]
[1641231569479,1.49776087,3764.0,3763.9,11.3324]
[1641231569981,1.62846357,3764.0,3763.9,11.3324]
[1641231570183,1.62846357,3764.0,3763.9,11.409009]
[1641231570382,1.85845457,3764.0,3763.9,11.3324]
[1641231570984,1.62846357,3764.0,3763.9,11.3324]
[1641231571284,0.1307027,3764.0,3763.9,11.409009]
[1641231571585,1.92399523,3764.2,3763.9,11.3324]
[1641231572586,1.49773147,3764.0,3763.9,11.3324]
[1641231573889,1.62843417,3764.0,3763.9,11.3324]
[1641231574088,1.62843417,3764.0,3763.9,11.409009]
[1641231574389,1.62843417,3764.0,3763.9,11.3324]
[1641231575693,1.62843417,3764.0,3763.9,11.409009]
[1641231575894,1.62843417,3764.0,3763.9,11.3324]
[1641231576693,0.1307027,3764.0,3763.9,11.3324]
[1641231576991,0.1307027,3764.0,3763.9,11.409009]
[1641231577391,1.62843417,3764.0,3763.9,11.3324]
[1641231578294,1.72772247,3764.0,3763.8,1.82894616]
[1641231578493,1.72772247,3764.0,3763.2,1.4796972]
[1641231579192,0.229991,3764.0,3763.2,1.4796972]
[1641231579395,0.1307027,3763.9,3763.2,0.78853011]
[1641231579594,0.9153027,3763.9,3763.2,0.78853011]
[1641231580094,2.9200927,3763.9,3763.2,0.78853011]
[1641231580498,1.19828106,3763.5,3763.2,0.78853011]
[1641231580696,0.229991,3763.4,3763.2,0.78853011]
[1641231580897,1.19828106,3763.5,3763.3,0.076609]
[1641231581096,1.19828106,3763.5,3763.2,0.91668711]
[1641231581495,0.229991,3763.4,3763.2,0.91668711]
[1641231581695,0.229991,3763.4,3763.2,0.78853011]
[1641231581895,0.1307027,3763.3,3763.2,0.78853011]
[1641231582097,0.1307027,3763.3,3763.2,0.86513911]
[1641231583296,0.3606937,3763.3,3763.2,0.78853011]
[1641231583499,0.1307027,3763.3,3763.2,0.86513911]
[1641231583897,1.19828106,3763.5,3763.2,0.86513911]
[1641231584097,1.19828106,3763.5,3763.2,0.78853011]
[1641231584497,1.19828106,3763.5,3763.3,0.076609]
[1641231584898,1.49785133,3763.7,3763.3,11.506609]
[1641231585098,1.19884342,3763.4,3763.3,11.506609]
[1641231585298,4.342e-05,3763.4,3763.3,13.006609]
[1641231586106,1.49785133,3763.7,3763.3,13.006609]
[1641231586299,1.79329253,3763.9,3763.3,13.006609]
[1641231586501,1.49785133,3764.2,3763.3,13.75586902]
[1641231586701,1.49785133,3764.2,3763.3,2.32586902]
[1641231587502,1.49785133,3764.0,3763.4,1.48482071]
[1641231587901,1.49785133,3764.0,3763.6,2.00479]
[1641231588705,1.49785133,3764.1,3763.6,2.00479]
[1641231591706,0.13916346,3764.2,3763.6,2.00479]
[1641231595913,1.19781802,3764.0,3763.6,2.00479]
[1641231596113,1.96361802,3764.0,3763.6,2.00479]
[1641231596816,0.7658,3764.0,3763.6,2.00479]
[1641231597615,0.13916346,3763.9,3763.6,2.00479]
[1641231597818,0.229991,3763.8,3763.6,2.00479]
[1641231598017,0.229991,3763.8,3763.5,1.48482071]